fUSD/lending_fUSD_20250308
["ID","MTS","AMOUNT","RATE_DAILY","PERIOD"]
[355620758,1741398647344,-500.0,9.985e-05,2]
[355620759,1741398647353,-5112.25,9.985e-05,2]
[355620760,1741398647363,-5639.25,9.985e-05,2]
[355620761,1741398647372,-500.0,9.985e-05,2]
[355620762,1741398647383,-8185.72,9.985e-05,2]
[355620763,1741398647392,-181.0274829,9.985e-05,2]
[355620764,1741398647402,-504.85078219,9.985e-05,2]
[355620765,1741398647412,-2963.97,9.985e-05,2]
[355620766,1741398647421,-505.28711404,9.985e-05,2]
[355620767,1741398647430,-594.19879144,9.985e-05,2]
[355620768,1741398647440,-3034.16,9.985e-05,2]
[355620769,1741398647450,-17144.9,9.985e-05,2]
[355620770,1741398647459,-500.0,9.985e-05,2]
[355620771,1741398647468,-5483.34,9.985e-05,2]
[355620772,1741398647478,-1927.56,9.985e-05,2]
[355620773,1741398647487,-500.0,9.985e-05,2]
[355620774,1741398647496,-500.0,9.985e-05,2]
[355620775,1741398647507,-500.0,9.985e-05,2]
[355620776,1741398647516,-1750.23,9.985e-05,2]
[355620777,1741398647525,-180.72563357,9.985e-05,2]
[355620778,1741398647535,-500.0,9.985e-05,2]
[355620779,1741398647544,-993.16,9.985e-05,2]
[355620780,1741398647553,-4524.62,9.985e-05,2]
[355620781,1741398647563,-508.52875189,9.985e-05,2]
[355620782,1741398647572,-1092.76,9.985e-05,2]
[355620783,1741398647585,-500.0,9.985e-05,2]
[355620784,1741398647594,-500.0,9.985e-05,2]
[355620785,1741398647604,-2094.85,9.985e-05,2]
[355620786,1741398647614,-6607.98,9.985e-05,2]
[355620787,1741398647624,-6512.19,9.985e-05,2]
[355620788,1741398647633,-2603.34,9.985e-05,2]
[355620789,1741398647643,-1496.08,9.985e-05,2]
[355620790,1741398647653,-1225.97,9.985e-05,2]
[355620791,1741398647663,-884.77,9.985e-05,2]
[355620792,1741398647675,-3915.76,9.985e-05,2]
[355620793,1741398647685,-17093.8,9.985e-05,2]
[355620794,1741398647695,-6223.61,9.985e-05,2]
[355620795,1741398647704,-1312.02,9.985e-05,2]
[355620796,1741398647713,-500.0,9.985e-05,2]
[355620797,1741398647723,-502.28166332,9.985e-05,2]
[355620798,1741398647732,-509.66395556,9.985e-05,2]
[355620799,1741398647741,-2134.83,9.985e-05,2]
[355620800,1741398647750,-500.0,9.985e-05,2]
[355620801,1741398647759,-500.0,9.985e-05,2]
[355620802,1741398647768,-4007.52,9.985e-05,2]
[355620803,1741398647778,-2253.53,9.985e-05,2]
[355620804,1741398647787,-511.51488033,9.985e-05,2]
[355620805,1741398647797,-500.0,9.985e-05,2]
[355620806,1741398647806,-3900.03,9.985e-05,2]
[355620807,1741398647816,-500.0,9.985e-05,2]
[355620808,1741398647825,-1660.73,9.985e-05,2]
[355620809,1741398647835,-500.0,9.985e-05,2]
[355620810,1741398647844,-1856.06,9.985e-05,2]
[355620811,1741398647853,-500.0,9.985e-05,2]
[355620812,1741398647863,-1744.69,9.985e-05,2]
[355620813,1741398647872,-500.0,9.985e-05,2]
[355620814,1741398647882,-500.0,9.985e-05,2]
[355620815,1741398647891,-500.0,9.985e-05,2]
[355620816,1741398647900,-500.0,9.985e-05,2]
[355620817,1741398647909,-505.74837232,9.985e-05,2]
[355620818,1741398647919,-500.0,9.985e-05,2]
[355620819,1741398647929,-500.0,9.985e-05,2]
[355620820,1741398647939,-500.0,9.985e-05,2]
[355620821,1741398647948,-500.0,9.985e-05,2]
[355620822,1741398647959,-4709.13,9.985e-05,2]
[355620823,1741398647968,-551.43927153,9.985e-05,2]
[355620824,1741398647978,-500.0,9.985e-05,2]
[355620825,1741398647987,-1148.39,9.985e-05,2]
[355620826,1741398647997,-2952.0,9.985e-05,2]
[355620827,1741398648007,-500.0,9.985e-05,2]
[355620828,1741398648016,-3716.67,9.985e-05,2]
[355620829,1741398648025,-4186.4,9.985e-05,2]
[355620830,1741398648034,-570.52830423,9.985e-05,2]
[355620831,1741398648044,-3250.02,9.985e-05,2]
[355620832,1741398648053,-4483.37,9.985e-05,2]
[355620833,1741398648062,-3553.23,9.985e-05,2]
[355620834,1741398648071,-500.0,9.985e-05,2]
[355620835,1741398648081,-15084.71,9.985e-05,2]
[355620836,1741398648090,-500.0,9.985e-05,2]
[355620837,1741398648099,-500.0,9.985e-05,2]
[355620838,1741398648109,-4491.9,9.985e-05,2]
[355620839,1741398648118,-502.26482766,9.985e-05,2]
[355620840,1741398648128,-500.0,9.985e-05,2]
[355620841,1741398648138,-500.0,9.985e-05,2]
[355620842,1741398648148,-500.0,9.985e-05,2]
[355620843,1741398648158,-6556.07,9.985e-05,2]
[355620844,1741398648168,-5449.33,9.985e-05,2]
[355620845,1741398648178,-500.0,9.985e-05,2]
[355620846,1741398648187,-2413.13,9.985e-05,2]
[355620847,1741398648197,-500.0,9.985e-05,2]
[355620848,1741398648206,-380.68003261,9.985e-05,2]
[355620849,1741398648215,-9837.13,9.985e-05,2]
[355620850,1741398648225,-500.0,9.985e-05,2]
[355620851,1741398648235,-1923.67,9.985e-05,2]
[355620852,1741398648244,-500.0,9.985e-05,2]
[355620853,1741398648253,-3577.83,9.985e-05,2]
[355620854,1741398648262,-500.0,9.985e-05,2]
[355620855,1741398648272,-500.0,9.985e-05,2]
[355620856,1741398648281,-3706.83,9.985e-05,2]
[355620857,1741398648291,-2666.14,9.985e-05,2]
[355620858,1741398648300,-500.0,9.985e-05,2]
[355620859,1741398648310,-12632.67,9.985e-05,2]
[355620860,1741398648318,-2231.94,9.985e-05,2]
[355620861,1741398648328,-6611.81,9.985e-05,2]
[355620862,1741398648338,-500.0,9.985e-05,2]
[355620863,1741398648347,-6611.81,9.985e-05,2]
[355620864,1741398648356,-4854.91,9.985e-05,2]
[355620865,1741398648366,-503.69420393,9.985e-05,2]
[355620866,1741398648375,-553.11771658,9.985e-05,2]
[355620867,1741398648384,-500.0,9.985e-05,2]
[355620868,1741398648393,-500.0,9.985e-05,2]
[355620869,1741398648403,-500.0,9.985e-05,2]
[355620870,1741398648412,-1017.4332555,9.986e-05,2]
[355620871,1741398648421,-500.0,9.986e-05,2]
[355620872,1741398648431,-500.0,9.986e-05,2]
[355620873,1741398648440,-500.0,9.986e-05,2]
[355620874,1741398648449,-500.0,9.986e-05,2]
[355620875,1741398648459,-500.0,9.986e-05,2]
[355620876,1741398648468,-503.17237395,9.986e-05,2]
[355620877,1741398648477,-500.0,9.986e-05,2]
[355620878,1741398648487,-500.0,9.986e-05,2]
[355620879,1741398648496,-500.0,9.986e-05,2]
[355620880,1741398648505,-500.0,9.986e-05,2]
[355620881,1741398648515,-263.8672717,9.986e-05,2]
[355620882,1741398648524,-500.0,9.986e-05,2]
[355620883,1741398648534,-500.0,9.986e-05,2]
[355620884,1741398648543,-500.0,9.986e-05,2]
[355620885,1741398648552,-500.0,9.986e-05,2]
[355620886,1741398648561,-500.0,9.986e-05,2]
[355620887,1741398648571,-500.0,9.986e-05,2]
[355620888,1741398648583,-506.72066914,9.986e-05,2]
[355620889,1741398648593,-500.0,9.986e-05,2]
[355620890,1741398648603,-500.0,9.986e-05,2]
[355620891,1741398648612,-500.0,9.986e-05,2]
[355620892,1741398648623,-508.20842425,9.986e-05,2]
[355620893,1741398648633,-1150.27,9.986e-05,2]
[355620894,1741398648643,-500.0,9.986e-05,2]
[355620895,1741398648652,-500.0,9.986e-05,2]
[355620896,1741398648665,-505.22597258,9.986e-05,2]
[355620897,1741398648676,-511.11316124,9.986e-05,2]
[355620898,1741398648686,-500.0,9.986e-05,2]
[355620899,1741398648695,-500.0,9.986e-05,2]
[355620900,1741398648704,-500.0,9.986e-05,2]
[355620901,1741398648715,-513.45412012,9.986e-05,2]
[355620902,1741398648725,-558.82725639,9.986e-05,2]
[355620903,1741398648735,-502.59584261,9.986e-05,2]
[355620904,1741398648745,-500.0,9.986e-05,2]
[355620905,1741398648755,-500.0,9.986e-05,2]
[355620906,1741398648765,-1682.39,9.986e-05,2]
[355620907,1741398648774,-500.0,9.986e-05,2]
[355620908,1741398648784,-151.0,9.986e-05,2]
[355620909,1741398648927,-158.480112,9.986e-05,2]
[355620910,1741398648952,-1226.86,9.986e-05,2]
[355620911,1741398648962,-1501.88,9.986e-05,2]
[355620912,1741398648971,-500.0,9.986e-05,2]
[355620913,1741398648981,-500.0,9.986e-05,2]
[355620914,1741398648990,-500.0,9.986e-05,2]
[355620915,1741398649000,-500.0,9.986e-05,2]
[355620916,1741398649010,-697.44,9.986e-05,2]
[355620917,1741398649019,-500.0,9.986e-05,2]
[355620918,1741398649028,-514.64638125,9.986e-05,2]
[355620919,1741398649038,-3036.72,9.986e-05,2]
[355620920,1741398649047,-500.0,9.986e-05,2]
[355620921,1741398649056,-500.0,9.986e-05,2]
[355620922,1741398649066,-500.0,9.986e-05,2]
[355620923,1741398649076,-500.0,9.986e-05,2]
[355620924,1741398649085,-500.0,9.986e-05,2]
[355620925,1741398649095,-500.0,9.986e-05,2]
[355620926,1741398649105,-1676.56,9.986e-05,2]
[355620927,1741398649115,-1821.56,9.986e-05,2]
[355620928,1741398649125,-500.0,9.986e-05,2]
[355620929,1741398649134,-511.23553057,9.986e-05,2]
[355620930,1741398649144,-376.59512972,9.986e-05,2]
[355620931,1741398649153,-941.06,9.986e-05,2]
[355620932,1741398649163,-2084.91,9.986e-05,2]
[355620933,1741398649172,-2100.32,9.986e-05,2]
[355620934,1741398649181,-500.0,9.986e-05,2]
[355620935,1741398649191,-1380.16,9.986e-05,2]
[355620936,1741398649200,-500.0,9.986e-05,2]
[355620937,1741398649210,-500.0,9.986e-05,2]
[355620938,1741398649219,-1400.68,9.986e-05,2]
[355620939,1741398649228,-500.0,9.986e-05,2]
[355620940,1741398649238,-1274.84,9.986e-05,2]
[355620941,1741398649247,-500.0,9.986e-05,2]
[355620942,1741398649256,-502.87844686,9.986e-05,2]
[355620943,1741398649266,-500.0,9.986e-05,2]
[355620944,1741398649275,-500.0,9.986e-05,2]
[355620945,1741398649285,-500.0,9.986e-05,2]
[355620946,1741398649295,-500.0,9.986e-05,2]
[355620947,1741398649304,-500.0,9.986e-05,2]
[355620948,1741398649313,-500.0,9.986e-05,2]
[355620949,1741398649324,-500.0,9.986e-05,2]
[355620950,1741398649333,-1267.03,9.986e-05,2]
[355620951,1741398649348,-1154.99,9.986e-05,2]
[355620952,1741398649357,-500.0,9.986e-05,2]
[355620953,1741398649366,-1102.5,9.986e-05,2]
[355620954,1741398649377,-500.0,9.986e-05,2]
[355620955,1741398649386,-503.28218103,9.986e-05,2]
[355620956,1741398649396,-500.0,9.986e-05,2]
[355620957,1741398649405,-1435.64,9.986e-05,2]
[355620958,1741398649415,-500.0,9.986e-05,2]
[355620959,1741398649424,-544.81,9.986e-05,2]
[355620960,1741398649434,-500.0,9.986e-05,2]
[355620961,1741398649444,-1000.0,9.986e-05,2]
[355620962,1741398649454,-2796.54,9.986e-05,2]
[355620963,1741398649466,-500.0,9.986e-05,2]
[355620964,1741398649477,-500.0,9.986e-05,2]
[355620965,1741398649487,-1726.53,9.986e-05,2]
[355620966,1741398649497,-500.0,9.986e-05,2]
[355620967,1741398649506,-500.0,9.986e-05,2]
[355620968,1741398649516,-1527.8,9.986e-05,2]
[355620969,1741398649526,-2636.53,9.986e-05,2]
[355620970,1741398649535,-502.36858431,9.986e-05,2]
[355620971,1741398649545,-2453.21,9.986e-05,2]
[355620972,1741398649554,-505.97881945,9.986e-05,2]
[355620973,1741398649564,-2484.84,9.986e-05,2]
[355620974,1741398649576,-500.0,9.986e-05,2]
[355620975,1741398649585,-783.27,9.986e-05,2]
[355620976,1741398649595,-500.0,9.986e-05,2]
[355620977,1741398649604,-2183.04,9.986e-05,2]
[355620978,1741398649615,-500.0,9.986e-05,2]
[355620979,1741398649625,-1296.78,9.986e-05,2]
[355620980,1741398649635,-1240.83,9.986e-05,2]
[355620981,1741398649645,-508.05772046,9.986e-05,2]
[355620982,1741398649656,-500.0,9.986e-05,2]
[355620983,1741398649665,-1714.15,9.986e-05,2]
[355620984,1741398649675,-8218.14,9.986e-05,2]
[355620985,1741398649685,-1823.21,9.986e-05,2]
[355620986,1741398649694,-49932.39117671,9.986e-05,2]
[355620987,1741398651039,-252.64263022,9.986e-05,2]
[355620988,1741398652691,-500.0,9.985e-05,2]
[355620989,1741398652702,-789.20747591,9.986e-05,2]
[355620990,1741398652714,-858.25299,9.986e-05,2]
[355620991,1741398652726,-55.04953409,9.986e-05,2]
[355620992,1741398652737,-247.83647028,9.986e-05,2]
[355620993,1741398652746,-1203.73,9.986e-05,2]
[355620994,1741398652756,-4003.53824233,9.986e-05,2]
[355620995,1741398652791,-666.88525991,9.986e-05,2]
[355620996,1741398652804,-1852.73649776,9.986e-05,2]
[355620997,1741398652813,-500.0,9.986e-05,2]
[355620998,1741398652823,-2072.18,9.986e-05,2]
[355620999,1741398652832,-974.77861069,9.986e-05,2]
[355621000,1741398652860,-251.24138931,9.986e-05,2]
[355621001,1741398652870,-2066.51,9.986e-05,2]
[355621002,1741398652880,-1182.49210318,9.986e-05,2]
[355621003,1741398656019,-112.35789682,9.986e-05,2]
[355621004,1741398656029,-4950.92,9.986e-05,2]
[355621005,1741398656041,-502.97971414,9.986e-05,2]
[355621006,1741398656057,-500.0,9.986e-05,2]
[355621007,1741398656067,-10265.74,9.986e-05,2]
[355621008,1741398656078,-2311.61,9.986e-05,2]
[355621009,1741398656087,-500.0,9.986e-05,2]
[355621010,1741398656099,-3497.36,9.986e-05,2]
[355621011,1741398656110,-3291.31,9.986e-05,2]
[355621012,1741398656121,-500.0,9.986e-05,2]
[355621013,1741398656131,-500.0,9.986e-05,2]
[355621014,1741398656141,-10835.58,9.986e-05,2]
[355621015,1741398656151,-500.0,9.986e-05,2]
[355621016,1741398656160,-8801.81,9.986e-05,2]
[355621017,1741398656170,-775.41,9.986e-05,2]
[355621018,1741398656181,-2098.25,9.986e-05,2]
[355621019,1741398656196,-368.0611663,9.986e-05,2]
[355621020,1741398656205,-648.90389044,9.986e-05,2]
[355621021,1741398656217,-870.71451054,9.986e-05,2]
[355621022,1741398656228,-3185.65500245,9.986e-05,2]
[355621023,1741398656394,-537.90659657,9.986e-05,2]
[355621024,1741398656404,-118.2367288,9.986e-05,2]
[355621025,1741398656416,-1897.7132712,9.986e-05,2]
[355621026,1741398656425,-500.0,9.986e-05,2]
[355621027,1741398656435,-500.0,9.986e-05,2]
[355621028,1741398656444,-752.37,9.986e-05,2]
[355621029,1741398656453,-500.0,9.986e-05,2]
[355621030,1741398656463,-500.0,9.986e-05,2]
[355621031,1741398656472,-500.0,9.986e-05,2]
[355621032,1741398656481,-500.0,9.986e-05,2]
[355621033,1741398656491,-3881.4,9.986e-05,2]
[355621034,1741398656500,-2942.58,9.986e-05,2]
[355621035,1741398656509,-500.0,9.986e-05,2]
[355621036,1741398656519,-3915.1,9.986e-05,2]
[355621037,1741398656528,-10535.11,9.986e-05,2]
[355621038,1741398656537,-2954.74,9.986e-05,2]
[355621039,1741398656547,-12497.19702881,9.986e-05,2]
[355621040,1741398656564,-8456.26297119,9.986e-05,2]
[355621041,1741398656573,-500.0,9.986e-05,2]
[355621042,1741398656585,-8468.79,9.986e-05,2]
[355621043,1741398656594,-500.0,9.986e-05,2]
[355621044,1741398656604,-3944.26,9.986e-05,2]
[355621045,1741398656613,-4105.42,9.986e-05,2]
[355621046,1741398656623,-509.2375183,9.986e-05,2]
[355621047,1741398656633,-1634.39,9.986e-05,2]
[355621048,1741398656642,-500.0,9.986e-05,2]
[355621049,1741398656652,-6611.81,9.986e-05,2]
[355621050,1741398656663,-6611.81,9.986e-05,2]
[355621051,1741398656673,-6611.81,9.986e-05,2]
[355621052,1741398656682,-6611.81,9.986e-05,2]
[355621053,1741398656691,-1634.48,9.986e-05,2]
[355621054,1741398656701,-1017.4332555,9.987e-05,2]
[355621055,1741398656711,-1119.0,9.987e-05,2]
[355621056,1741398656721,-11963.48625501,9.987e-05,2]
[355621057,1741398656743,-1635.63586324,9.987e-05,2]
[355621058,1741398656755,-11258.40135739,9.987e-05,2]
[355621061,1741398823395,2700.0,0.0002,120]
[355621192,1741399832543,-1371.48,8.219e-05,2]
[355621193,1741399832554,-250.0,8.987e-05,2]
[355621194,1741399832564,-224.29,8.987e-05,2]
[355621195,1741399832574,-346.47,8.992e-05,2]
[355621196,1741399832584,-1000.0,9.053e-05,2]
[355621197,1741399832593,-391.22426291,9.787e-05,2]
[355621198,1741399832604,-500.0,9.799e-05,2]
[355621199,1741399832613,-217.19467034,9.799e-05,2]
[355621200,1741399832623,-500.0,9.799e-05,2]
[355621201,1741399832632,-217.30625412,9.799e-05,2]
[355621202,1741399832642,-500.0,9.799e-05,2]
[355621203,1741399832651,-500.0,9.799e-05,2]
[355621204,1741399832660,-500.0,9.799e-05,2]
[355621205,1741399832670,-500.0,9.799e-05,2]
[355621206,1741399832679,-150.0,9.799e-05,2]
[355621208,1741399832689,-1922.24,9.799e-05,2]
[355621209,1741399832699,-500.0,9.799e-05,2]
[355621210,1741399832708,-1186.93,9.799e-05,2]
[355621211,1741399832718,-500.0,9.799e-05,2]
[355621212,1741399832727,-1624.20857067,9.8e-05,2]
[355621231,1741399838117,-629.9988713,9.799e-05,2]
[355621232,1741399838128,-391.22701088,9.799e-05,2]
[355621431,1741399840133,-1060.8,9.799e-05,2]
[355621450,1741399840306,-428.77499999,9.799e-05,2]
[355621608,1741399843829,-504.00911783,9.799e-05,2]
[355621609,1741399843840,-1291.65347901,9.799e-05,2]
[355621610,1741399843887,-919.75652099,9.799e-05,2]
[355621611,1741399843896,-120.24337901,9.799e-05,2]
[355621612,1741399843929,-331.40167,9.799e-05,2]
[355621613,1741399843939,-2333.50495099,9.799e-05,2]
[355621614,1741399843949,-8727.5250125,9.8e-05,2]
[355621615,1741399843961,-4011.29080858,9.8e-05,2]
[355621616,1741399843974,-1012.97035628,9.8e-05,2]
[355621620,1741399846066,-10811.26345889,9.8e-05,2]
[355621621,1741399846077,-6974.5758397,9.8e-05,2]
[355621622,1741399846283,-599.38775637,9.8e-05,2]
[355621623,1741399846295,-1131.90187909,9.8e-05,2]
[355621627,1741399911123,-300.0,9.984e-05,7]
[355621628,1741399912537,-200.0,9.984e-05,7]
[355621666,1741400149275,-500.0,0.00010258,7]
[355621667,1741400305990,-500.0,9.983e-05,7]
[355621796,1741400987152,332.0,0.00020111,120]
[355621800,1741401032181,-250.0,8.893e-05,2]
[355621801,1741401032197,-77.19068877,9e-05,2]
[355621808,1741401032277,-306.0,9e-05,2]
[355621809,1741401032290,-2.74013292,9e-05,2]
[355621810,1741401032300,-873.74986708,9.001e-05,2]
[355621811,1741401032366,-126.25013292,9.001e-05,2]
[355621812,1741401032378,-164.85316,9.581e-05,2]
[355621813,1741401032388,-159.038876,9.581e-05,2]
[355621814,1741401032398,-164.85316,9.587e-05,2]
[355621815,1741401032408,-159.038876,9.587e-05,2]
[355621816,1741401032418,-164.85316,9.588e-05,2]
[355621817,1741401032427,-159.038876,9.588e-05,2]
[355621818,1741401032438,-164.85316,9.594e-05,2]
[355621819,1741401032447,-159.038876,9.594e-05,2]
[355621820,1741401032456,-164.85316,9.597e-05,2]
[355621821,1741401032466,-159.038876,9.597e-05,2]
[355621822,1741401032476,-1898.6652,9.698e-05,2]
[355621823,1741401032487,-300.0,9.699e-05,2]
[355621824,1741401032497,-2469.6144,9.7e-05,2]
[355621825,1741401032506,-3860.0394,9.7e-05,2]
[355621826,1741401032516,-482.4144,9.7e-05,2]
[355621827,1741401032526,-164.85316,9.793e-05,2]
[355621828,1741401032535,-159.038876,9.793e-05,2]
[355621829,1741401032545,-164.85316,9.795e-05,2]
[355621830,1741401032554,-159.038876,9.795e-05,2]
[355621831,1741401032564,-723.94,9.796e-05,2]
[355621832,1741401032573,-468.95286909,9.796e-05,2]
[355621833,1741401032583,-2889.19,9.796e-05,2]
[355621834,1741401032593,-500.0,9.796e-05,2]
[355621835,1741401032604,-500.0,9.797e-05,2]
[355621836,1741401032614,-152.03626924,9.797e-05,2]
[355621837,1741401032623,-500.0,9.797e-05,2]
[355621838,1741401032633,-467.6188654,9.797e-05,2]
[355621839,1741401032643,-500.0,9.797e-05,2]
[355621840,1741401032653,-500.0,9.797e-05,2]
[355621841,1741401032663,-1816.66760062,9.797e-05,2]
[355621842,1741401032675,-685.59184777,9.797e-05,2]
[355621854,1741401038217,-2697.13,9.796e-05,2]
[355621855,1741401038226,-2385.89,9.797e-05,2]
[355621856,1741401038235,-2345.36,9.797e-05,2]
[355621857,1741401038245,-4012.74,9.797e-05,2]
[355621858,1741401038254,-1618.37,9.797e-05,2]
[355621859,1741401038264,-3744.31,9.797e-05,2]
[355621860,1741401038276,-15254.89,9.797e-05,2]
[355621861,1741401038285,-564.31,9.797e-05,2]
[355621862,1741401038294,-2186.52566929,9.797e-05,2]
[355621863,1741401038305,-962.51523225,9.797e-05,2]
[355621864,1741401038441,-2141.04909846,9.797e-05,2]
[355621865,1741401038450,-1036.258103,9.797e-05,2]
[355621866,1741401038462,-3785.271897,9.797e-05,2]
[355621867,1741401038471,-1734.69,9.797e-05,2]
[355621868,1741401038481,-4941.45,9.797e-05,2]
[355621869,1741401038492,-6524.42,9.797e-05,2]
[355621870,1741401038501,-649.0179457,9.797e-05,2]
[355621871,1741401038519,-523.86514992,9.797e-05,2]
[355621872,1741401038537,-1913.90787291,9.797e-05,2]
[355621877,1741401038604,-340.478,9.797e-05,2]
[355621879,1741401038614,-416.04690249,9.797e-05,2]
[355621881,1741401038626,-343.53394244,9.797e-05,2]
[355621884,1741401038643,-1323.11018654,9.797e-05,2]
[355621885,1741401038652,-564.43284733,9.797e-05,2]
[355621886,1741401038663,-513.49700321,9.797e-05,2]
[355621887,1741401038674,-824.32000001,9.797e-05,2]
[355621897,1741401040226,-1075.9988658,9.797e-05,2]
[355621898,1741401040237,-1384.28203671,9.797e-05,2]
[355621899,1741401040249,-999.5000125,9.797e-05,2]
[355621900,1741401040260,-2082.375,9.797e-05,2]
[355621901,1741401040412,-1239.64423444,9.797e-05,2]
[355621902,1741401040421,-3582.03564466,9.797e-05,2]
[355621903,1741401040432,-308.94361421,9.797e-05,2]
[355621904,1741401040443,-471.23074113,9.797e-05,2]
[355621905,1741401040453,-7648.89,9.797e-05,2]
[355621906,1741401040462,-1948.73,9.797e-05,2]
[355621907,1741401040472,-4750.64,9.797e-05,2]
[355621908,1741401040481,-6270.04,9.797e-05,2]
[355621909,1741401040490,-5357.88,9.797e-05,2]
[355621910,1741401040499,-363.64407316,9.797e-05,2]
[355621911,1741401040510,-498.38433971,9.797e-05,2]
[355621912,1741401040521,-367.03000001,9.797e-05,2]
[355621913,1741401040550,-2212.70158712,9.797e-05,2]
[355621914,1741401040560,-5988.28,9.797e-05,2]
[355621915,1741401040569,-3915.45,9.797e-05,2]
[355621916,1741401040579,-2160.28,9.797e-05,2]
[355621917,1741401040588,-7830.98,9.797e-05,2]
[355621918,1741401040597,-2490.88,9.797e-05,2]
[355621919,1741401040608,-4105.76,9.797e-05,2]
[355621920,1741401040618,-3867.92,9.797e-05,2]
[355621921,1741401040628,-500.0,9.797e-05,2]
[355621922,1741401040637,-9094.53,9.797e-05,2]
[355621923,1741401040647,-7132.19,9.797e-05,2]
[355621924,1741401040657,-16041.14,9.797e-05,2]
[355621925,1741401040665,-5690.77,9.797e-05,2]
[355621926,1741401040675,-500.0,9.797e-05,2]
[355621927,1741401040684,-1896.28,9.797e-05,2]
[355621928,1741401040693,-5555.13,9.797e-05,2]
[355621929,1741401040702,-500.0,9.797e-05,2]
[355621930,1741401040712,-3369.64,9.797e-05,2]
[355621931,1741401040721,-500.0,9.797e-05,2]
[355621932,1741401040729,-28766.28,9.797e-05,2]
[355621933,1741401040738,-3930.17,9.797e-05,2]
[355621934,1741401040749,-9315.35,9.797e-05,2]
[355621936,1741401040759,-500.0,9.797e-05,2]
[355621938,1741401040769,-1714.69,9.797e-05,2]
[355621939,1741401040779,-5100.67,9.797e-05,2]
[355621940,1741401040790,-6346.8,9.797e-05,2]
[355621941,1741401040800,-3467.45,9.797e-05,2]
[355621942,1741401040809,-500.0,9.797e-05,2]
[355621943,1741401040818,-14583.74,9.797e-05,2]
[355621944,1741401040829,-33582.48,9.797e-05,2]
[355621945,1741401040840,-3061.72,9.797e-05,2]
[355621946,1741401040851,-1793.9,9.797e-05,2]
[355621947,1741401040860,-500.0,9.797e-05,2]
[355621948,1741401040869,-500.0,9.797e-05,2]
[355621949,1741401040878,-5222.27,9.797e-05,2]
[355621950,1741401040887,-1853.02,9.797e-05,2]
[355621951,1741401040896,-2494.25542479,9.797e-05,2]
[355621952,1741401040908,-801.81421915,9.797e-05,2]
[355621953,1741401040919,-119.96035606,9.797e-05,2]
[355621954,1741401040929,-6109.59,9.797e-05,2]
[355621955,1741401040938,-500.0,9.797e-05,2]
[355621956,1741401040947,-500.0,9.797e-05,2]
[355621957,1741401040957,-4919.95,9.797e-05,2]
[355621958,1741401040966,-700.07,9.797e-05,2]
[355621959,1741401040975,-500.0,9.797e-05,2]
[355621960,1741401041145,-1383.18953695,9.797e-05,2]
[355621961,1741401041158,-3366.40046305,9.797e-05,2]
[355621962,1741401041168,-500.0,9.797e-05,2]
[355621963,1741401041179,-768.13,9.797e-05,2]
[355621964,1741401041188,-1395.58,9.797e-05,2]
[355621965,1741401041198,-2033.52,9.797e-05,2]
[355621966,1741401041207,-426.99400184,9.797e-05,2]
[355621967,1741401041219,-73.00599816,9.797e-05,2]
[355621968,1741401041228,-500.0,9.797e-05,2]
[355621969,1741401041237,-500.0,9.797e-05,2]
[355621970,1741401041247,-344.39250184,9.797e-05,2]
[355621971,1741401041285,-155.60749816,9.797e-05,2]
[355621972,1741401041295,-507.99270176,9.797e-05,2]
[355621973,1741401041306,-500.0,9.797e-05,2]
[355621974,1741401041315,-275.03711948,9.797e-05,2]
[355621975,1741401041326,-224.96288052,9.797e-05,2]
[355621976,1741401041336,-500.0,9.797e-05,2]
[355621977,1741401041345,-500.0,9.797e-05,2]
[355621978,1741401041354,-500.0,9.797e-05,2]
[355621979,1741401041365,-596.54274209,9.797e-05,2]
[355621980,1741401041377,-954.39725791,9.797e-05,2]
[355621981,1741401041387,-404.60274209,9.797e-05,2]
[355621982,1741401041398,-95.39725791,9.797e-05,2]
[355621983,1741401041409,-500.0,9.798e-05,2]
[355621984,1741401041418,-500.0,9.798e-05,2]
[355621985,1741401041428,-500.0,9.798e-05,2]
[355621986,1741401041438,-428.17021917,9.798e-05,2]
[355621987,1741401041450,-76.07683656,9.798e-05,2]
[355621988,1741401041460,-500.0,9.798e-05,2]
[355621989,1741401041470,-500.0,9.798e-05,2]
[355621990,1741401041479,-510.79460903,9.798e-05,2]
[355621991,1741401041489,-500.0,9.798e-05,2]